fUSD/lending_fUSD_20260702
["ID","MTS","AMOUNT","RATE_DAILY","PERIOD"]
[426894504,1782991838000,-174.43141022,0.0003025,2]
[426894505,1782991838000,-350.0,0.00030259,3]
[426894507,1782991838000,-167.984,0.00030309,25]
[426894503,1782991838000,-2769.81203964,0.00030234,2]
[426894545,1782991838000,-151.0,0.00030518,2]
[426894512,1782991838000,-8554.48,0.000304,2]
[426894508,1782991838000,-293.66,0.00030375,2]
[426894506,1782991838000,-4612.234,0.00030309,25]
[426894509,1782991838000,-2000.0,0.00030388,20]
[426894511,1782991838000,-517.22139961,0.000304,2]
[426894513,1782991838000,-175.51104744,0.00030411,60]
[426894510,1782991838000,-280.37852452,0.000304,2]
[426894594,1782991839000,-1000.0,0.00030846,2]
[426894592,1782991839000,-1000.0,0.00030846,2]
[426894591,1782991839000,-600.0,0.000308,11]
[426894590,1782991839000,-2000.0,0.000308,2]
[426894586,1782991839000,-200.0,0.00030752,2]
[426894589,1782991839000,-391.0,0.00030782,2]
[426894596,1782991839000,-1011.25,0.00030846,7]
[426894587,1782991839000,-391.0,0.00030779,2]
[426894585,1782991839000,-6089.0,0.00030752,2]
[426894584,1782991839000,-1231.0,0.00030752,2]
[426894582,1782991839000,-1362.0,0.00030752,2]
[426894588,1782991839000,-2769.81203964,0.00030782,2]
[426894593,1782991839000,-1000.0,0.00030846,2]
[426894611,1782991839000,-160.0,0.000309,30]
[426894599,1782991839000,-500.0,0.00030846,7]
[426894595,1782991839000,-1011.25,0.00030846,7]
[426894600,1782991839000,-500.0,0.00030846,7]
[426894598,1782991839000,-500.0,0.00030846,7]
[426894602,1782991839000,-500.0,0.00030847,2]
[426894601,1782991839000,-830.70798892,0.00030847,2]
[426894609,1782991839000,-300.1,0.000309,2]
[426894612,1782991839000,-151.0,0.000309,7]
[426894608,1782991839000,-2000.0,0.00030899,4]
[426894605,1782991839000,-2000.0,0.00030847,2]
[426894610,1782991839000,-900.0,0.000309,11]
[426894583,1782991839000,-223.0,0.00030752,2]
[426894597,1782991839000,-1011.25,0.00030846,7]
[426894603,1782991839000,-33361.7046,0.00030847,2]
[426894562,1782991839000,-391.0,0.00030595,2]
[426894580,1782991839000,-356.3,0.0003073,120]
[426894606,1782991839000,-391.0,0.00030852,2]
[426894551,1782991839000,-151.0,0.00030518,2]
[426894553,1782991839000,-151.35,0.00030519,2]
[426894552,1782991839000,-574.07,0.00030518,2]
[426894556,1782991839000,-151.0,0.00030519,2]
[426894554,1782991839000,-151.0,0.00030519,2]
[426894563,1782991839000,-198.97330281,0.000306,2]
[426894555,1782991839000,-151.0,0.00030519,2]
[426894560,1782991839000,-19748.39553303,0.00030547,2]
[426894557,1782991839000,-151.0,0.00030519,2]
[426894558,1782991839000,-236.2,0.00030519,2]
[426894561,1782991839000,-2000.0,0.00030587,60]
[426894581,1782991839000,-1278.0,0.00030752,2]
[426894565,1782991839000,-1000.0,0.00030609,2]
[426894568,1782991839000,-500.0,0.00030609,7]
[426894566,1782991839000,-1011.25,0.00030609,7]
[426894570,1782991839000,-225928.4787556,0.0003061,2]
[426894571,1782991839000,-3499.6928105,0.0003061,2]
[426894572,1782991839000,-391.0,0.00030654,2]
[426894573,1782991839000,-508.0,0.00030661,5]
[426894574,1782991839000,-391.0,0.00030686,2]
[426894575,1782991839000,-157.08054,0.0003069,10]
[426894576,1782991839000,-157.08054,0.0003069,10]
[426894577,1782991839000,-505.0,0.00030699,2]
[426894579,1782991839000,-391.0,0.00030717,2]
[426894578,1782991839000,-2000.0,0.00030699,8]
[426894564,1782991839000,-160.26529082,0.00030607,2]
[426894613,1782991839000,-2000.0,0.00030903,30]
[426894644,1782991839000,-394.23065854,0.00030947,2]
[426894607,1782991839000,-391.0,0.0003088,2]
[426894643,1782991839000,-854.96,0.00030947,7]
[426894646,1782991839000,-37390.0,0.00030959,2]
[426894648,1782991839000,-391.0,0.00030977,2]
[426894647,1782991839000,-500.0,0.00030969,2]
[426894649,1782991839000,-426.0,0.00030983,10]
[426894651,1782991839000,-159.18385844,0.00030997,7]
[426894650,1782991839000,-197.0,0.00030984,10]
[426894655,1782991839000,-19748.39553303,0.00030998,2]
[426894653,1782991839000,-2000.0,0.00030998,6]
[426894658,1782991839000,-1764.6354,0.00030999,28]
[426894656,1782991839000,-871.82968518,0.00030999,28]
[426894654,1782991839000,-2000.0,0.00030998,16]
[426894641,1782991839000,-894.86,0.00030947,7]
[426894652,1782991839000,-2000.0,0.00030998,10]
[426894659,1782991839000,-2000.0,0.00030999,2]
[426894661,1782991839000,-2000.0,0.00030999,15]
[426894660,1782991839000,-2000.0,0.00030999,7]
[426894662,1782991839000,-2000.0,0.00030999,28]
[426894664,1782991839000,-200.0,0.00031,2]
[426894665,1782991839000,-1000.0,0.00031,7]
[426894669,1782991839000,-157.08054,0.00031,14]
[426894670,1782991839000,-157.08054,0.00031,14]
[426894604,1782991839000,-109431.2555,0.00030847,120]
[426894663,1782991839000,-200.0,0.00031,2]
[426894666,1782991839000,-371.68,0.00031,7]
[426894668,1782991839000,-157.08054,0.00031,14]
[426894657,1782991839000,-1304.20506832,0.00030999,28]
[426894640,1782991839000,-200.0,0.00030947,2]
[426894667,1782991839000,-157.08054,0.00031,14]
[426894639,1782991839000,-5118.9549442,0.00030947,2]
[426894642,1782991839000,-200.0,0.00030947,2]
[426894615,1782991839000,-391.0,0.00030913,2]
[426894619,1782991839000,-151.0,0.00030944,7]
[426894620,1782991839000,-2000.0,0.00030945,120]
[426894618,1782991839000,-150.0,0.00030932,2]
[426894621,1782991839000,-2000.0,0.00030945,5]
[426894616,1782991839000,-391.0,0.00030925,2]
[426894617,1782991839000,-377.10878628,0.00030932,2]
[426894622,1782991839000,-500.0,0.00030945,7]
[426894623,1782991839000,-500.0,0.00030946,14]
[426894624,1782991839000,-500.0,0.00030946,14]
[426894626,1782991839000,-1000.0,0.00030946,2]
[426894625,1782991839000,-500.0,0.00030946,14]
[426894614,1782991839000,-391.0,0.00030907,2]
[426894631,1782991839000,-1011.25,0.00030946,7]
[426894632,1782991839000,-500.0,0.00030946,7]
[426894637,1782991839000,-1796.0,0.00030946,2]
[426894635,1782991839000,-500.0,0.00030946,60]
[426894636,1782991839000,-585.7143991,0.00030946,60]
[426894634,1782991839000,-500.0,0.00030946,60]
[426894645,1782991839000,-2000.0,0.00030951,14]
[426894629,1782991839000,-1011.25,0.00030946,7]
[426894628,1782991839000,-1000.0,0.00030946,2]
[426894630,1782991839000,-1011.25,0.00030946,7]
[426894638,1782991839000,-1786.0,0.00030946,2]
[426894633,1782991839000,-500.0,0.00030946,7]
[426894627,1782991839000,-1000.0,0.00030946,2]
[426894710,1782991840000,-151.08,0.00031338,2]
[426894700,1782991840000,-200.0,0.0003131,2]
[426894703,1782991840000,-2769.81203964,0.0003133,2]
[426894706,1782991840000,-151.0,0.00031338,2]
[426894704,1782991840000,-300.0,0.00031333,5]
[426894702,1782991840000,-200.0,0.0003131,2]
[426894709,1782991840000,-151.66,0.00031338,2]
[426894708,1782991840000,-151.0,0.00031338,2]
[426894711,1782991840000,-151.0,0.00031338,2]
[426894707,1782991840000,-151.0,0.00031338,2]
[426894705,1782991840000,-412.0,0.00031333,5]
[426894714,1782991840000,-175.78,0.00031338,2]
[426894713,1782991840000,-151.0,0.00031338,2]
[426894715,1782991840000,-569.33,0.00031338,2]
[426894717,1782991840000,-151.0,0.00031338,2]
[426894716,1782991840000,-151.0,0.00031338,2]
[426894719,1782991840000,-185.37,0.00031338,2]
[426894718,1782991840000,-151.0,0.00031338,2]
[426894723,1782991840000,-151.0,0.00031338,2]
[426894725,1782991840000,-151.43,0.00031338,2]
[426894726,1782991840000,-151.0,0.00031338,2]
[426894698,1782991840000,-391.0,0.00031288,2]
[426894712,1782991840000,-151.0,0.00031338,2]
[426894696,1782991840000,-400.65667531,0.00031286,2]
[426894682,1782991840000,-391.0,0.00031128,2]
[426894694,1782991840000,-165.78,0.00031279,2]
[426894671,1782991840000,-160.0,0.00031,120]
[426894672,1782991840000,-150.0,0.00031011,2]
[426894673,1782991840000,-2056.59370627,0.00031014,30]
[426894674,1782991840000,-201.81200805,0.0003105,30]
[426894681,1782991840000,-1568.0,0.00031123,2]
[426894678,1782991840000,-391.0,0.00031072,2]
[426894676,1782991840000,-9000.0,0.00031062,5]
[426894677,1782991840000,-350.0,0.00031063,2]
[426894720,1782991840000,-151.0,0.00031338,2]
[426894679,1782991840000,-391.0,0.00031074,2]
[426894695,1782991840000,-391.0,0.00031282,2]
[426894680,1782991840000,-2013.0,0.000311,2]
[426894683,1782991840000,-391.0,0.00031143,2]
[426894687,1782991840000,-200.0,0.00031221,2]
[426894685,1782991840000,-391.0,0.00031201,2]
[426894686,1782991840000,-391.0,0.00031207,2]
[426894688,1782991840000,-181.47062496,0.00031226,2]
[426894693,1782991840000,-2056.59370627,0.0003126,30]
[426894690,1782991840000,-200.0,0.00031256,2]
[426894692,1782991840000,-500.0,0.0003126,7]
[426894689,1782991840000,-3025.5149452,0.00031252,2]
[426894691,1782991840000,-200.0,0.00031256,2]
[426894684,1782991840000,-2056.59370627,0.00031151,30]
[426894721,1782991840000,-485.03,0.00031338,2]
[426894675,1782991840000,-2769.81203964,0.00031056,2]
[426894728,1782991840000,-644.82,0.00031338,2]
[426894756,1782991840000,-482.62,0.0003134,2]
[426894753,1782991840000,-151.0,0.0003134,2]
[426894757,1782991840000,-151.0,0.0003134,2]
[426894755,1782991840000,-248.85,0.0003134,2]
[426894760,1782991840000,-644.82,0.0003134,2]
[426894759,1782991840000,-185.36,0.0003134,2]
[426894762,1782991840000,-644.82,0.00031341,2]
[426894761,1782991840000,-574.05,0.0003134,2]
[426894758,1782991840000,-644.49,0.0003134,2]
[426894764,1782991840000,-151.0,0.00031341,2]
[426894763,1782991840000,-151.0,0.00031341,2]
[426894765,1782991840000,-151.0,0.00031341,2]
[426894769,1782991840000,-644.85,0.00031341,2]
[426894771,1782991840000,-151.0,0.00031341,2]
[426894767,1782991840000,-151.0,0.00031341,2]
[426894768,1782991840000,-574.09,0.00031341,2]
[426894770,1782991840000,-151.0,0.00031341,2]
[426894773,1782991840000,-151.0,0.00031341,2]
[426894774,1782991840000,-185.36,0.00031341,2]
[426894772,1782991840000,-151.0,0.00031341,2]
[426894776,1782991840000,-574.06,0.00031341,2]
[426894775,1782991840000,-151.0,0.00031341,2]
[426894727,1782991840000,-574.06,0.00031338,2]
[426894754,1782991840000,-151.0,0.0003134,2]
[426894751,1782991840000,-151.0,0.0003134,2]
[426894766,1782991840000,-151.21,0.00031341,2]
[426894746,1782991840000,-151.0,0.0003134,2]
[426894752,1782991840000,-151.0,0.0003134,2]
[426894722,1782991840000,-151.0,0.00031338,2]
[426894724,1782991840000,-151.0,0.00031338,2]
[426894730,1782991840000,-644.82,0.00031338,2]
[426894729,1782991840000,-185.04,0.00031338,2]
[426894736,1782991840000,-644.82,0.00031338,2]
[426894738,1782991840000,-644.82,0.00031338,2]
[426894733,1782991840000,-574.05,0.00031338,2]
[426894731,1782991840000,-151.0,0.00031338,2]
[426894739,1782991840000,-151.0,0.00031339,2]
[426894732,1782991840000,-185.37,0.00031338,2]
[426894734,1782991840000,-644.82,0.00031338,2]
[426894735,1782991840000,-151.0,0.00031338,2]
[426894737,1782991840000,-151.0,0.00031338,2]
[426894741,1782991840000,-151.0,0.00031339,2]
[426894740,1782991840000,-574.05,0.00031339,2]
[426894748,1782991840000,-151.31,0.0003134,2]
[426894744,1782991840000,-151.0,0.0003134,2]
[426894743,1782991840000,-648.49,0.00031339,2]
[426894742,1782991840000,-644.82,0.00031339,2]
[426894750,1782991840000,-151.0,0.0003134,2]
[426894749,1782991840000,-151.0,0.0003134,2]
[426894747,1782991840000,-151.0,0.0003134,2]
[426894745,1782991840000,-151.0,0.0003134,2]
[426894820,1782991841000,-167.49809596,0.000315,2]
[426894819,1782991841000,-183.39706898,0.000315,2]
[426894817,1782991841000,-194.41,0.00031496,14]
[426894823,1782991841000,-507.49219555,0.00031506,14]
[426894816,1782991841000,-12659.88377736,0.00031496,2]
[426894813,1782991841000,-500.0,0.0003147,2]
[426894814,1782991841000,-2183.1446633,0.00031475,2]
[426894812,1782991841000,-1000.0,0.0003147,2]
[426894811,1782991841000,-1680.0,0.00031461,2]
[426894806,1782991841000,-1011.25,0.00031455,7]
[426894818,1782991841000,-371.68,0.000315,7]
[426894815,1782991841000,-258.890702,0.00031482,7]
[426894824,1782991841000,-2056.59370627,0.00031507,30]
[426894833,1782991841000,-16635.0,0.00031562,2]
[426894821,1782991841000,-205.69219556,0.000315,6]
[426894825,1782991841000,-391.0,0.00031517,2]
[426894830,1782991841000,-391.0,0.00031539,2]
[426894827,1782991841000,-830.70798889,0.00031521,2]
[426894834,1782991841000,-200.0,0.00031569,2]
[426894826,1782991841000,-391.0,0.00031519,2]
[426894831,1782991841000,-263.87,0.00031543,30]
[426894832,1782991841000,-200.0,0.00031545,2]
[426894829,1782991841000,-451.24,0.00031537,3]
[426894835,1782991841000,-200.0,0.00031569,2]
[426894836,1782991841000,-1000.0,0.0003157,2]
[426894810,1782991841000,-399.0,0.0003146,2]
[426894822,1782991841000,-2411.58631906,0.000315,2]
[426894809,1782991841000,-391.0,0.00031459,2]
[426894781,1782991841000,-574.05,0.00031341,2]
[426894808,1782991841000,-533.60122701,0.00031458,7]
[426894777,1782991841000,-151.0,0.00031341,2]
[426894779,1782991841000,-574.05,0.00031341,2]
[426894780,1782991841000,-574.05,0.00031341,2]
[426894828,1782991841000,-2712.13269882,0.00031528,2]
[426894782,1782991841000,-185.36,0.00031341,2]
[426894784,1782991841000,-644.82,0.00031341,2]
[426894783,1782991841000,-151.0,0.00031341,2]
[426894788,1782991841000,-185.36,0.00031341,2]
[426894785,1782991841000,-185.36,0.00031341,2]
[426894789,1782991841000,-391.0,0.00031345,2]
[426894790,1782991841000,-2000.0,0.0003135,2]
[426894787,1782991841000,-311.49,0.00031341,2]
[426894786,1782991841000,-644.82,0.00031341,2]
[426894791,1782991841000,-10000.0,0.0003135,2]
[426894792,1782991841000,-201.81200805,0.00031355,30]
[426894795,1782991841000,-370.34323438,0.00031396,2]
[426894793,1782991841000,-391.0,0.00031358,2]
[426894799,1782991841000,-1049.67121807,0.000314,2]
[426894796,1782991841000,-2056.59370627,0.00031397,30]
[426894797,1782991841000,-391.0,0.000314,2]
[426894798,1782991841000,-1049.67121808,0.000314,2]
[426894801,1782991841000,-179.2683589,0.000314,2]
[426894794,1782991841000,-391.0,0.00031376,2]
[426894800,1782991841000,-1049.67121807,0.000314,2]
[426894802,1782991841000,-391.0,0.0003141,2]
[426894803,1782991841000,-192.31851246,0.00031442,2]
[426894804,1782991841000,-19748.39553303,0.00031449,2]
[426894805,1782991841000,-1000.0,0.00031455,2]
[426894837,1782991841000,-500.0,0.0003157,2]
[426894778,1782991841000,-151.0,0.00031341,2]
[426894839,1782991841000,-174.43141022,0.00031575,2]
[426894868,1782991841000,-151.0,0.000316,7]
[426894876,1782991841000,-300.349945,0.000316,7]
[426894866,1782991841000,-151.0,0.000316,7]
[426894872,1782991841000,-151.0,0.000316,7]
[426894875,1782991841000,-151.0,0.000316,7]
[426894874,1782991841000,-1442.751476,0.000316,7]
[426894878,1782991841000,-300.349945,0.000316,7]
[426894877,1782991841000,-1442.751476,0.000316,7]
[426894883,1782991841000,-151.0,0.000316,7]
[426894882,1782991841000,-300.349945,0.000316,7]
[426894886,1782991841000,-151.0,0.000316,7]
[426894885,1782991841000,-161.116495,0.000316,7]
[426894871,1782991841000,-151.0,0.000316,7]
[426894888,1782991841000,-151.0,0.000316,7]
[426894880,1782991841000,-151.0,0.000316,7]
[426894884,1782991841000,-161.116495,0.000316,7]
[426894887,1782991841000,-151.0,0.000316,7]
[426894889,1782991841000,-151.0,0.000316,7]
[426894881,1782991841000,-161.116495,0.000316,7]
[426894890,1782991841000,-208.928932,0.000316,7]
[426894891,1782991841000,-151.735035,0.000316,7]
[426894892,1782991841000,-151.0,0.000316,7]
[426894894,1782991841000,-151.0,0.000316,7]
[426894893,1782991841000,-151.0,0.000316,7]
[426894895,1782991841000,-151.0,0.000316,7]
[426894897,1782991841000,-162.828028,0.000316,7]
[426894879,1782991841000,-151.0,0.000316,7]
[426894869,1782991841000,-1442.751476,0.000316,7]
[426894896,1782991841000,-241.8652,0.000316,7]
[426894867,1782991841000,-1442.751476,0.000316,7]
[426894873,1782991841000,-300.349945,0.000316,7]
[426894844,1782991841000,-1011.25,0.00031599,7]
[426894841,1782991841000,-391.0,0.00031585,2]
[426894845,1782991841000,-1011.25,0.00031599,7]
[426894842,1782991841000,-1000.0,0.00031599,2]
[426894843,1782991841000,-1000.0,0.00031599,2]
[426894846,1782991841000,-500.0,0.00031599,7]
[426894849,1782991841000,-183.16,0.000316,7]
[426894847,1782991841000,-500.0,0.00031599,7]
[426894850,1782991841000,-6012.39,0.000316,7]
[426894848,1782991841000,-500.0,0.00031599,7]
[426894840,1782991841000,-391.0,0.00031579,2]
[426894851,1782991841000,-598289.23457407,0.000316,2]
[426894862,1782991841000,-151.0,0.000316,7]
[426894838,1782991841000,-391.0,0.00031575,2]
[426894858,1782991841000,-151.0,0.000316,7]
[426894853,1782991841000,-151.0,0.000316,7]
[426894870,1782991841000,-161.116495,0.000316,7]
[426894864,1782991841000,-151.0,0.000316,7]
[426894856,1782991841000,-154.90621644,0.000316,7]
[426894861,1782991841000,-151.0,0.000316,7]
[426894857,1782991841000,-151.0,0.000316,7]
[426894865,1782991841000,-151.0,0.000316,7]
[426894863,1782991841000,-164.084355,0.000316,7]
[426894852,1782991841000,-319.24,0.000316,7]
[426894860,1782991841000,-151.0,0.000316,7]
[426894859,1782991841000,-152.132329,0.000316,7]
[426894854,1782991841000,-151.0,0.000316,7]
[426894855,1782991841000,-153.13731,0.000316,7]
[426894933,1782991842000,-437.670522,0.000316,7]
[426894928,1782991842000,-151.0,0.000316,7]
[426894936,1782991842000,-257.145016,0.000316,7]
[426894932,1782991842000,-216.253864,0.000316,7]
[426894935,1782991842000,-1001.198462,0.000316,7]
[426894937,1782991842000,-216.253864,0.000316,7]
[426894934,1782991842000,-151.0,0.000316,7]
[426894931,1782991842000,-347.383253,0.000316,7]
[426894929,1782991842000,-1001.198462,0.000316,7]
[426894930,1782991842000,-257.145016,0.000316,7]
[426894938,1782991842000,-347.383253,0.000316,7]
[426894944,1782991842000,-347.383253,0.000316,7]
[426894941,1782991842000,-257.145016,0.000316,7]
[426894947,1782991842000,-357.94967,0.000316,7]
[426894942,1782991842000,-347.383253,0.000316,7]
[426894943,1782991842000,-151.0,0.000316,7]
[426894927,1782991842000,-437.670522,0.000316,7]
[426894945,1782991842000,-357.94967,0.000316,7]
[426894948,1782991842000,-357.94967,0.000316,7]
[426894949,1782991842000,-207.164695,0.000316,7]
[426894946,1782991842000,-357.94967,0.000316,7]
[426894940,1782991842000,-1001.198462,0.000316,7]
[426894950,1782991842000,-151.0,0.000316,7]
[426894953,1782991842000,-151.0,0.000316,7]
[426894939,1782991842000,-151.0,0.000316,7]
[426894926,1782991842000,-216.253864,0.000316,7]
[426894918,1782991842000,-151.0,0.000316,7]
[426894922,1782991842000,-151.0,0.000316,7]
[426894960,1782991842000,-211.096063,0.000316,7]
[426894898,1782991842000,-151.0,0.000316,7]
[426894900,1782991842000,-151.0,0.000316,7]
[426894899,1782991842000,-151.0,0.000316,7]
[426894901,1782991842000,-151.0,0.000316,7]
[426894902,1782991842000,-160.335538,0.000316,7]
[426894904,1782991842000,-176.927082,0.000316,7]
[426894910,1782991842000,-232.799435,0.000316,7]
[426894911,1782991842000,-151.0,0.000316,7]
[426894913,1782991842000,-151.0,0.000316,7]
[426894912,1782991842000,-151.0,0.000316,7]
[426894905,1782991842000,-151.0,0.000316,7]
[426894906,1782991842000,-151.0,0.000316,7]
[426894903,1782991842000,-151.0,0.000316,7]
[426894907,1782991842000,-151.0,0.000316,7]
[426894909,1782991842000,-151.0,0.000316,7]
[426894914,1782991842000,-959.821412,0.000316,7]
[426894924,1782991842000,-1001.198462,0.000316,7]
[426894915,1782991842000,-959.821412,0.000316,7]
[426894925,1782991842000,-257.145016,0.000316,7]
[426894916,1782991842000,-959.821412,0.000316,7]
[426894919,1782991842000,-437.670522,0.000316,7]
[426894923,1782991842000,-437.670522,0.000316,7]
[426894917,1782991842000,-959.821412,0.000316,7]
[426894921,1782991842000,-216.253864,0.000316,7]
[426894920,1782991842000,-151.0,0.000316,7]
[426894908,1782991842000,-151.0,0.000316,7]
[426894962,1782991842000,-211.096063,0.000316,7]
[426894951,1782991842000,-262.93044,0.000316,7]
[426894985,1782991842000,-391.0,0.00031709,2]
[426894987,1782991842000,-350.0,0.00031733,2]
[426894984,1782991842000,-310.0,0.000317,2]
[426894983,1782991842000,-317.0,0.000317,2]
[426894990,1782991842000,-500.0,0.0003177,2]
[426894986,1782991842000,-391.0,0.00031716,2]
[426894992,1782991842000,-391.0,0.00031779,2]
[426894991,1782991842000,-1000.0,0.0003177,2]
[426894994,1782991842000,-648.95,0.00031781,7]
[426894993,1782991842000,-626.29,0.00031781,7]
[426894996,1782991842000,-227.13251241,0.00031798,14]
[426894982,1782991842000,-1000.0,0.000317,2]
[426894997,1782991842000,-1234.6132586,0.000318,2]
[426895000,1782991842000,-474.0,0.00031802,2]
[426895001,1782991842000,-387.0,0.00031808,2]
[426894999,1782991842000,-438.0,0.00031802,2]
[426895002,1782991842000,-506.0,0.00031809,2]
[426895004,1782991842000,-384.0,0.00031819,2]
[426895005,1782991842000,-391.0,0.00031828,2]
[426895007,1782991842000,-875.79,0.00031837,30]
[426895003,1782991842000,-391.0,0.00031817,2]
[426895006,1782991842000,-298.59,0.00031837,30]
[426895008,1782991842000,-375.83,0.00031837,30]
[426894959,1782991842000,-250.245116,0.000316,7]
[426894998,1782991842000,-1100.0,0.000318,11]
[426894988,1782991842000,-171.0,0.00031735,2]
[426894995,1782991842000,-283.62895546,0.00031782,2]
[426894980,1782991842000,-391.0,0.00031687,2]
[426894956,1782991842000,-262.93044,0.000316,7]
[426894981,1782991842000,-151.54125967,0.00031688,2]
[426894954,1782991842000,-262.93044,0.000316,7]
[426894952,1782991842000,-151.0,0.000316,7]
[426894957,1782991842000,-262.93044,0.000316,7]
[426894955,1782991842000,-301.599236,0.000316,7]
[426894958,1782991842000,-250.245116,0.000316,7]
[426894961,1782991842000,-250.245116,0.000316,7]
[426894966,1782991842000,-1000.0,0.00031603,2]
[426894963,1782991842000,-250.245116,0.000316,7]
[426894967,1782991842000,-1011.25,0.00031603,7]
[426894964,1782991842000,-211.096063,0.000316,7]
[426894972,1782991842000,-200.0,0.00031623,2]
[426894965,1782991842000,-211.096063,0.000316,7]
[426894971,1782991842000,-200.0,0.00031623,2]
[426894989,1782991842000,-2056.59370627,0.00031753,30]
[426894977,1782991842000,-426.0,0.00031668,10]
[426894979,1782991842000,-165.28,0.00031686,2]
[426894976,1782991842000,-8000.0,0.0003166,2]
[426894969,1782991842000,-391.0,0.00031605,2]
[426894975,1782991842000,-391.0,0.00031647,2]
[426894968,1782991842000,-2769.81203964,0.00031604,2]
[426894970,1782991842000,-2056.59370627,0.00031616,30]
[426894978,1782991842000,-391.0,0.00031678,2]
[426894974,1782991842000,-151.0,0.00031646,2]
[426894973,1782991842000,-391.0,0.00031643,2]
[426895052,1782991843000,-153.338799,0.00031897,7]
[426895051,1782991843000,-437.575486,0.00031897,7]
[426895049,1782991843000,-437.575486,0.00031897,7]
[426895050,1782991843000,-437.575486,0.00031897,7]
[426895046,1782991843000,-167.233024,0.00031897,7]
[426895056,1782991843000,-456.695896,0.00031897,7]
[426895048,1782991843000,-167.233024,0.00031897,7]
[426895054,1782991843000,-456.695896,0.00031897,7]
[426895053,1782991843000,-456.695896,0.00031897,7]
[426895055,1782991843000,-315.349693,0.00031897,7]
[426895058,1782991843000,-456.695896,0.00031897,7]
[426895047,1782991843000,-437.575486,0.00031897,7]
[426895057,1782991843000,-315.349693,0.00031897,7]
[426895080,1782991843000,-154.739641,0.00031897,7]
[426895059,1782991843000,-315.349693,0.00031897,7]
[426895061,1782991843000,-251.066804,0.00031897,7]
[426895060,1782991843000,-315.349693,0.00031897,7]
[426895062,1782991843000,-251.066804,0.00031897,7]
[426895063,1782991843000,-251.066804,0.00031897,7]
[426895067,1782991843000,-151.0,0.00031897,7]
[426895064,1782991843000,-251.066804,0.00031897,7]
[426895065,1782991843000,-151.0,0.00031897,7]
[426895066,1782991843000,-222.40722,0.00031897,7]
[426895070,1782991843000,-222.40722,0.00031897,7]
[426895081,1782991843000,-151.0,0.00031897,7]
[426895044,1782991843000,-167.233024,0.00031897,7]
[426895068,1782991843000,-222.40722,0.00031897,7]
[426895045,1782991843000,-316.89304,0.00031897,7]
[426895009,1782991843000,-391.0,0.00031841,2]
[426895039,1782991843000,-151.0,0.00031897,7]
[426895013,1782991843000,-2183.1446633,0.0003185,2]
[426895015,1782991843000,-391.0,0.00031852,2]
[426895010,1782991843000,-370.0,0.00031848,2]
[426895011,1782991843000,-310.30633323,0.00031848,2]
[426895016,1782991843000,-425.0,0.00031853,2]
[426895019,1782991843000,-829.32,0.00031875,7]
[426895020,1782991843000,-2769.81203964,0.00031878,2]